bitfinex/quotes_BTCUSD_20221001
["timestamp","ask_amount","ask_price","bid_price","bid_amount"]
[1664652156493,1.00759806,19314.0,19312.0,0.27902878]
[1664652156744,1.00759806,19314.0,19313.0,0.05]
[1664652157154,0.94669095,19314.0,19313.0,0.05]
[1664652157366,1.00759806,19314.0,19313.0,0.05]
[1664652157571,1.00759806,19314.0,19312.0,0.40856278]
[1664652158591,1.00734423,19314.0,19313.0,0.05]
[1664652159588,0.94643712,19314.0,19313.0,0.05]
[1664652159802,1.00734423,19314.0,19313.0,0.05]
[1664652160300,1.00734423,19314.0,19312.0,0.40856278]
[1664652163415,1.00734423,19314.0,19312.0,0.36233882]
[1664652163695,1.00734423,19314.0,19313.0,0.05]
[1664652165610,1.30734423,19314.0,19312.0,0.36233882]
[1664652165820,1.0482067,19314.0,19312.0,0.36233882]
[1664652166139,0.96699511,19314.0,19312.0,0.36233882]
[1664652166339,1.0482067,19314.0,19312.0,0.36233882]
[1664652166566,0.96699511,19314.0,19312.0,0.36233882]
[1664652166731,0.96699511,19314.0,19312.0,0.38896182]
[1664652167455,1.0482067,19314.0,19312.0,0.38896182]
[1664652168791,0.04059708,19313.0,19312.0,0.38896182]
[1664652170003,1.00759219,19314.0,19312.0,0.38896182]
[1664652170213,0.04059708,19313.0,19312.0,0.38896182]
[1664652170672,1.00759219,19314.0,19312.0,0.38896182]
[1664652170889,0.10150419,19314.0,19312.0,0.38896182]
[1664652171144,1.30759219,19314.0,19312.0,0.38896182]
[1664652172083,0.04059708,19313.0,19312.0,0.38896182]
[1664652173368,1.00759219,19314.0,19312.0,0.38896182]
[1664652173874,0.04059708,19313.0,19312.0,0.38896182]
[1664652174663,0.10150419,19313.0,19312.0,0.38896182]
[1664652174903,0.04059708,19313.0,19312.0,0.38896182]
[1664652175283,0.34059708,19313.0,19312.0,0.38896182]
[1664652175675,0.04059708,19313.0,19312.0,0.38896182]
[1664652178372,0.04059831,19313.0,19312.0,0.38896182]
[1664652180679,0.34059831,19313.0,19312.0,0.38896182]
[1664652180825,0.34059831,19313.0,19312.0,0.38889277]
[1664652181045,0.04059831,19313.0,19312.0,0.38889277]
[1664652187106,0.41089674,19317.0,19312.0,0.38889277]
[1664652187107,0.25224119,19319.0,19317.0,0.05]
[1664652187350,0.15224119,19320.0,19318.0,1.14044422]
[1664652187603,0.18264323,19320.0,19319.0,0.31971678]
[1664652187832,0.0405857,19320.0,19319.0,0.67801878]
[1664652188061,0.14205331,19321.0,19319.0,0.67801878]
[1664652188062,0.0405857,19321.0,19319.0,0.67801878]
[1664652188311,0.0405857,19321.0,19320.0,0.408302]
[1664652188544,0.10146424,19321.0,19320.0,0.33940075]
[1664652188780,0.10146424,19321.0,19320.0,0.4182613]
[1664652189938,0.22553561,19322.0,19320.0,0.4182613]
[1664652190408,0.22553561,19322.0,19321.0,0.05]
[1664652191103,0.22553561,19322.0,19320.0,0.129482]
[1664652191789,0.22553561,19322.0,19321.0,0.05]
[1664652192690,0.22553561,19322.0,19320.0,0.388445]
[1664652192969,0.22553561,19322.0,19321.0,0.05]
[1664652193180,0.22553561,19322.0,19321.0,0.0938445]
[1664652197444,0.22553561,19322.0,19321.0,0.0438445]
[1664652198492,0.129377,19324.0,19321.0,0.0438445]
[1664652198730,0.64110844,19324.0,19321.0,0.4322665]
[1664652200240,0.84594777,19324.0,19321.0,0.4322665]
[1664652200377,0.64110844,19324.0,19321.0,0.388422]
[1664652200596,0.64110844,19324.0,19323.0,0.05]
[1664652200822,0.94110844,19324.0,19323.0,0.05]
[1664652201076,0.94110844,19324.0,19322.0,0.388402]
[1664652202381,0.3,19323.0,19322.0,0.388402]
[1664652202506,0.94110844,19324.0,19322.0,0.388402]
[1664652204545,1.19985344,19324.0,19322.0,0.388402]
[1664652205916,0.3,19323.0,19322.0,0.388402]
[1664652207961,0.55022682,19323.0,19322.0,0.388402]
[1664652209652,0.55022682,19323.0,19315.0,0.7]
[1664652209653,0.57017,19322.0,19315.0,0.7]
[1664652209906,0.57017,19322.0,19314.0,0.129523]
[1664652209907,0.44411846,19319.0,19314.0,0.129523]
[1664652210159,0.09616035,19315.0,19314.0,0.129523]
[1664652210397,1.40447375,19315.0,19314.0,0.229523]
[1664652210666,1.40447375,19315.0,19314.0,0.1]
[1664652210667,1.47991684,19315.0,19314.0,0.1]
[1664652210901,1.70447375,19315.0,19314.0,0.1]
[1664652211135,1.49963442,19315.0,19314.0,0.1]
[1664652212538,1.55363442,19315.0,19314.0,0.1]
[1664652213820,1.49963442,19315.0,19314.0,0.1]
[1664652214490,1.55363442,19315.0,19314.0,0.1]
[1664652215179,1.19606474,19315.0,19314.0,0.1]
[1664652215785,1.14206474,19315.0,19314.0,0.1]
[1664652216643,1.19606474,19315.0,19314.0,0.1]
[1664652217892,1.14206474,19315.0,19314.0,0.1]
[1664652218566,1.19606474,19315.0,19314.0,0.1]
[1664652219752,1.14206474,19315.0,19314.0,0.1]
[1664652220425,1.18806474,19315.0,19314.0,0.1]
[1664652220643,1.23806474,19315.0,19314.0,0.1]
[1664652220900,1.18806474,19315.0,19314.0,0.1]
[1664652221773,1.14206474,19315.0,19314.0,0.1]
[1664652222439,1.19606474,19315.0,19314.0,0.1]
[1664652223307,0.09616035,19312.0,19311.0,0.2118552]
[1664652223589,0.85530393,19314.0,19311.0,0.2118552]
[1664652223807,0.129449,19313.0,19311.0,0.2118552]
[1664652224510,0.151449,19313.0,19311.0,0.2878552]
[1664652225853,0.129449,19313.0,19311.0,0.2118552]
[1664652226488,0.129449,19313.0,19312.0,0.358302]
[1664652226843,0.147449,19313.0,19311.0,0.2868552]
[1664652227736,0.51173144,19312.0,19311.0,0.2868552]
[1664652227987,0.81173144,19312.0,19311.0,0.2118552]
[1664652228650,0.53273144,19312.0,19311.0,0.2888552]
[1664652229135,0.83273144,19312.0,19311.0,0.2888552]
[1664652230015,0.81173144,19312.0,19311.0,0.2118552]
[1664652230669,0.83373144,19312.0,19311.0,0.2888552]
[1664652230890,0.53373144,19312.0,19311.0,0.2888552]
[1664652231844,0.16815285,19313.0,19311.0,0.2118552]
[1664652232071,0.97988429,19313.0,19311.0,0.2118552]
[1664652232293,0.67988429,19313.0,19311.0,0.2118552]
[1664652232721,0.69888429,19313.0,19311.0,0.2878552]
[1664652233187,0.66018044,19313.0,19311.0,0.2878552]
[1664652234412,0.64118044,19313.0,19311.0,0.2118552]
[1664652234655,0.64918044,19313.0,19311.0,0.2818552]
[1664652235987,0.64118044,19313.0,19311.0,0.2118552]
[1664652236735,0.65518044,19313.0,19311.0,0.2858552]
[1664652237193,0.143449,19313.0,19311.0,0.2858552]
[1664652237413,0.014,19313.0,19312.0,0.358302]
[1664652237640,0.314,19313.0,19311.0,0.2858552]
[1664652237870,0.314,19313.0,19311.0,0.2118552]
[1664652237871,0.3,19313.0,19311.0,0.2118552]
[1664652238804,0.308,19313.0,19311.0,0.2818552]
[1664652240159,0.308,19313.0,19311.0,0.2118552]
[1664652240392,0.3,19313.0,19311.0,0.2118552]
[1664652240610,0.308,19313.0,19311.0,0.2818552]
[1664652240829,1.214147,19313.0,19311.0,0.4113992]
[1664652241913,1.206147,19313.0,19311.0,0.3413992]
[1664652242638,1.52493116,19313.0,19311.0,0.4113992]
[1664652242838,1.53293116,19313.0,19311.0,0.4113992]
[1664652243912,1.206147,19313.0,19311.0,0.3413992]
[1664652244124,1.52493116,19313.0,19311.0,0.3413992]
[1664652244716,1.224147,19313.0,19311.0,0.4173992]
[1664652245185,1.54293116,19313.0,19311.0,0.4173992]
[1664652245738,1.54293116,19313.0,19311.0,0.3413992]
[1664652246028,1.52493116,19313.0,19311.0,0.3413992]
[1664652246596,0.09616035,19312.0,19311.0,0.41731993]
[1664652246806,1.224147,19313.0,19311.0,0.41731993]
[1664652247105,1.54293116,19313.0,19311.0,0.41731993]
[1664652248012,1.52493116,19313.0,19311.0,0.34131993]
[1664652248589,1.54293116,19313.0,19311.0,0.41731993]
[1664652249022,1.224147,19313.0,19311.0,0.41731993]
[1664652249236,1.54293116,19313.0,19311.0,0.41731993]
[1664652249459,1.224147,19313.0,19311.0,0.41731993]
[1664652249952,1.206147,19313.0,19311.0,0.34131993]
[1664652250591,1.206147,19313.0,19311.0,0.41731993]
[1664652250912,1.225147,19313.0,19311.0,0.41731993]
[1664652251792,0.09616035,19312.0,19311.0,0.41731993]
[1664652252013,1.206147,19313.0,19311.0,0.34131993]
[1664652252162,0.61878416,19313.0,19311.0,0.34131993]
[1664652252598,1.54393116,19313.0,19311.0,0.41731993]
[1664652253480,1.225147,19313.0,19311.0,0.41731993]
[1664652253696,1.58317063,19313.0,19311.0,0.41731993]
[1664652253911,1.56417063,19313.0,19311.0,0.34131993]
[1664652254405,0.10129123,19312.0,19311.0,0.34131993]
[1664652254644,0.10129123,19312.0,19311.0,0.41731993]
[1664652255282,0.46073367,19312.0,19311.0,0.41731993]
[1664652255552,0.76073367,19312.0,19311.0,0.41731993]
[1664652255950,0.76073367,19312.0,19311.0,0.34131993]
[1664652256202,0.44194951,19312.0,19311.0,0.34131993]
[1664652256404,0.76073367,19312.0,19311.0,0.34131993]
[1664652256611,0.44194951,19312.0,19311.0,0.34131993]
[1664652256855,0.45794951,19312.0,19311.0,0.41631993]
[1664652257076,0.11737972,19312.0,19311.0,0.41631993]
[1664652257292,0.41737972,19312.0,19311.0,0.41631993]
[1664652257959,0.40137972,19312.0,19311.0,0.34131993]
[1664652258192,0.10137972,19312.0,19311.0,0.34131993]
[1664652258664,0.40137972,19312.0,19311.0,0.34131993]
[1664652258876,0.40637972,19312.0,19311.0,0.40631993]
[1664652259096,0.44694951,19312.0,19311.0,0.40631993]
[1664652259326,0.36577474,19312.0,19311.0,0.40631993]
[1664652259982,0.40138038,19312.0,19311.0,0.34131993]
[1664652260414,0.44194951,19312.0,19311.0,0.34131993]
[1664652260778,0.40638023,19312.0,19311.0,0.40631993]
[1664652261064,0.36577474,19312.0,19311.0,0.40631993]
[1664652261293,0.40637939,19312.0,19311.0,0.40631993]
[1664652261509,0.76573367,19312.0,19311.0,0.40631993]
[1664652261984,0.76073367,19312.0,19311.0,0.34131993]
[1664652262462,0.44194951,19312.0,19311.0,0.34131993]
[1664652262686,0.76073367,19312.0,19311.0,0.40631993]
[1664652262906,0.76573367,19312.0,19311.0,0.40631993]
[1664652263127,0.10637985,19312.0,19311.0,0.40631993]
[1664652263801,0.40637985,19312.0,19311.0,0.40631993]
[1664652264026,0.40137931,19312.0,19311.0,0.34131993]
[1664652264477,0.36077474,19312.0,19311.0,0.34131993]
[1664652264696,0.4013793,19312.0,19311.0,0.40631993]
[1664652264920,0.4063793,19312.0,19311.0,0.40631993]
[1664652265135,0.36577474,19312.0,19311.0,0.40631993]
[1664652265361,0.40637877,19312.0,19311.0,0.40631993]
[1664652265836,0.36577474,19312.0,19311.0,0.40631993]
[1664652266079,0.36077474,19312.0,19311.0,0.33631993]
[1664652266523,0.40137862,19312.0,19311.0,0.33631993]
[1664652266736,0.40637862,19312.0,19311.0,0.40131993]
[1664652267187,0.36577474,19312.0,19311.0,0.40131993]
[1664652267403,0.40637831,19312.0,19311.0,0.40131993]
[1664652267616,0.40637858,19312.0,19311.0,0.40131993]
[1664652268058,0.40137858,19312.0,19311.0,0.33631993]
[1664652268728,0.40637858,19312.0,19311.0,0.40131993]
[1664652270098,0.40137858,19312.0,19311.0,0.33631993]
[1664652270924,0.40637858,19312.0,19311.0,0.40131993]
[1664652272123,0.40137858,19312.0,19311.0,0.33631993]
[1664652272660,0.40637858,19312.0,19311.0,0.40131993]
[1664652273768,0.04560384,19312.0,19311.0,0.40131993]
[1664652273936,1.00752558,19313.0,19311.0,0.33631993]
[1664652274150,0.04060384,19312.0,19311.0,0.33631993]
[1664652274361,0.40137858,19312.0,19311.0,0.33631993]
[1664652274833,0.40637858,19312.0,19311.0,0.40131993]
[1664652275059,0.34560384,19312.0,19311.0,0.40131993]
[1664652275516,0.40637858,19312.0,19311.0,0.40131993]
[1664652275737,0.6845589,19312.0,19311.0,0.40131993]
[1664652275959,0.6795589,19312.0,19311.0,0.33631993]
[1664652276427,0.36077474,19312.0,19311.0,0.33631993]
[1664652276873,0.36577474,19312.0,19311.0,0.40131993]
[1664652277095,0.6845589,19312.0,19311.0,0.40131993]
[1664652277502,0.36577474,19312.0,19311.0,0.40131993]
[1664652277688,0.6845589,19312.0,19311.0,0.40131993]
[1664652278106,0.6845589,19312.0,19311.0,0.33631993]
[1664652278107,0.6795589,19312.0,19311.0,0.33631993]
[1664652278799,0.36577474,19312.0,19311.0,0.40131993]
[1664652279011,0.6845589,19312.0,19311.0,0.40131993]
[1664652279228,0.44694951,19312.0,19311.0,0.40131993]
[1664652279407,0.36577474,19312.0,19311.0,0.40131993]
[1664652280094,0.36077474,19312.0,19311.0,0.33631993]
[1664652280963,0.36577474,19312.0,19311.0,0.40131993]
[1664652281522,0.005,19312.0,19311.0,0.40131993]
[1664652282089,0.3,19312.0,19311.0,0.33631993]
[1664652282310,0.36077474,19312.0,19311.0,0.33631993]
[1664652282964,0.36577474,19312.0,19311.0,0.40131993]
[1664652283948,0.36577474,19312.0,19311.0,0.33631993]
[1664652284162,0.06077474,19312.0,19311.0,0.33631993]
[1664652284620,0.36077474,19312.0,19311.0,0.33631993]
[1664652284857,0.36577474,19312.0,19311.0,0.40131993]
[1664652285849,0.40638005,19312.0,19311.0,0.40131993]
[1664652286044,0.40638005,19312.0,19311.0,0.33631993]
[1664652286292,0.40138005,19312.0,19311.0,0.33631993]
[1664652286705,0.36077474,19312.0,19311.0,0.33631993]
[1664652286877,0.37677474,19312.0,19311.0,0.41131993]
[1664652287520,0.41738181,19312.0,19311.0,0.41131993]
[1664652287735,0.11738181,19312.0,19311.0,0.41131993]
[1664652288162,0.6795589,19312.0,19311.0,0.33631993]
[1664652288400,0.40138185,19312.0,19311.0,0.33631993]
[1664652288729,0.40638185,19312.0,19311.0,0.40131993]
[1664652289308,0.36577474,19312.0,19311.0,0.40131993]
[1664652290011,0.36577474,19312.0,19311.0,0.33631993]
[1664652290188,0.36077474,19312.0,19311.0,0.33631993]
[1664652290538,0.40138184,19312.0,19311.0,0.33631993]
[1664652290919,0.36577474,19312.0,19311.0,0.40131993]
[1664652292456,0.40138209,19312.0,19311.0,0.33631993]
[1664652292597,0.10138209,19312.0,19311.0,0.33631993]
[1664652292829,0.10638209,19312.0,19311.0,0.40131993]
[1664652293995,0.36577474,19312.0,19311.0,0.33631993]
[1664652294195,0.44194951,19312.0,19311.0,0.33631993]
[1664652294873,0.10638193,19312.0,19311.0,0.40131993]
[1664652295457,0.40638193,19312.0,19311.0,0.40131993]
[1664652295699,0.44694951,19312.0,19311.0,0.40131993]
[1664652296076,0.36577474,19312.0,19311.0,0.40131993]
[1664652296274,0.44194951,19312.0,19311.0,0.33631993]
[1664652296837,0.10638568,19312.0,19311.0,0.40131993]
[1664652297048,0.14694951,19312.0,19311.0,0.40131993]
[1664652297564,0.005,19312.0,19311.0,0.77319088]
[1664652297777,0.005,19312.0,19311.0,1.13149288]
[1664652298172,0.04060823,19314.0,19311.0,1.19595188]
[1664652298381,0.42893823,19314.0,19312.0,0.11428651]
[1664652298591,0.42893823,19314.0,19312.0,0.388602]
[1664652298810,0.43393823,19314.0,19312.0,0.388602]
[1664652299714,0.43393823,19314.0,19312.0,0.70738616]
[1664652299969,0.43393823,19314.0,19313.0,0.05]
[1664652300185,0.42893823,19314.0,19313.0,0.05]
[1664652300439,0.42893823,19314.0,19312.0,0.388602]
[1664652300672,0.04060823,19313.0,19312.0,0.388602]
[1664652300893,0.86771297,19314.0,19312.0,0.50459901]
[1664652301152,0.11860823,19314.0,19313.0,0.05]
[1664652301385,0.50693723,19314.0,19313.0,0.05]
[1664652301977,0.50693723,19314.0,19312.0,0.50459901]
[1664652302186,0.00771436,19313.0,19312.0,0.50459901]
[1664652302430,0.00771436,19313.0,19312.0,0.388602]
[1664652302999,0.00971436,19313.0,19312.0,0.441602]
[1664652304177,0.00771436,19313.0,19312.0,0.388602]
[1664652304844,0.00971436,19313.0,19312.0,0.441602]
[1664652305518,0.00971436,19313.0,19312.0,0.799904]
[1664652305725,0.00971436,19313.0,19312.0,0.95703121]
[1664652305951,0.00971436,19313.0,19312.0,0.59872921]
[1664652306163,0.00971436,19313.0,19312.0,0.388602]
[1664652306164,0.00771436,19313.0,19312.0,0.388602]
[1664652306464,0.00771436,19313.0,19312.0,0.746904]
[1664652306904,0.00971436,19313.0,19312.0,0.799904]
[1664652307199,0.00971436,19313.0,19312.0,0.441602]
[1664652307888,0.00971436,19313.0,19312.0,0.799904]
[1664652308132,0.00771436,19313.0,19312.0,0.90403121]
[1664652308343,0.00771436,19313.0,19312.0,0.54572921]
[1664652308560,0.00771436,19313.0,19312.0,0.388602]
[1664652308951,0.02171436,19313.0,19312.0,0.462602]
[1664652309984,0.32171436,19313.0,19312.0,0.462602]
[1664652310202,0.00771436,19313.0,19312.0,0.388602]
[1664652310850,0.01371436,19313.0,19312.0,0.455602]
[1664652312174,0.00771436,19313.0,19312.0,0.388602]
[1664652312822,0.01371436,19313.0,19312.0,0.455602]
[1664652313062,0.01371436,19313.0,19312.0,0.813904]
[1664652313277,0.31371436,19313.0,19312.0,0.455602]
[1664652313462,0.01371436,19313.0,19312.0,0.813904]
[1664652313673,0.01371436,19313.0,19312.0,0.455602]
[1664652314159,0.00771436,19313.0,19312.0,0.388602]
[1664652314405,0.30771436,19313.0,19312.0,0.388602]
[1664652314733,0.30771436,19313.0,19312.0,0.383602]
[1664652314734,0.00771436,19313.0,19312.0,0.383602]
[1664652314956,0.01371436,19313.0,19312.0,0.808904]
[1664652315179,0.01371436,19313.0,19312.0,0.450602]
[1664652315971,0.01371436,19313.0,19312.0,0.808904]
[1664652316193,0.00771436,19313.0,19312.0,0.383602]
[1664652316649,0.00771436,19313.0,19312.0,0.741904]
[1664652316864,0.01371436,19313.0,19312.0,0.808904]
[1664652317075,0.01371436,19313.0,19312.0,0.450602]
[1664652317961,0.06899436,19313.0,19312.0,0.450602]
[1664652318171,0.00771436,19313.0,19312.0,0.383602]
[1664652318392,0.00771436,19313.0,19312.0,0.741904]
[1664652318650,0.00771436,19313.0,19312.0,0.383602]
[1664652319007,0.05771436,19313.0,19312.0,0.383602]
[1664652320097,0.00771436,19313.0,19312.0,0.383602]
[1664652320548,0.00771436,19313.0,19312.0,0.741904]
[1664652320996,0.07571436,19313.0,19312.0,0.383602]
[1664652322239,0.00771436,19313.0,19312.0,0.383602]
[1664652322457,0.00771436,19313.0,19312.0,0.741904]
[1664652322677,0.00771436,19313.0,19312.0,0.383602]
[1664652322893,0.07571436,19313.0,19312.0,0.383602]
[1664652323140,0.07571436,19313.0,19312.0,0.741904]
[1664652323826,0.07571436,19313.0,19312.0,0.383602]
[1664652324057,0.07571436,19313.0,19312.0,0.741904]
[1664652324278,0.00771436,19313.0,19312.0,0.741904]
[1664652324487,0.00771436,19313.0,19312.0,0.383602]
[1664652324709,0.00771436,19313.0,19312.0,0.741904]
[1664652324929,0.07571436,19313.0,19312.0,0.383602]
[1664652326900,0.14371436,19313.0,19312.0,0.741904]
[1664652327570,0.14371436,19313.0,19312.0,0.383602]
[1664652327767,0.14371436,19313.0,19312.0,0.741904]
[1664652328230,0.14371436,19313.0,19312.0,0.383602]
[1664652328467,0.00771436,19313.0,19312.0,0.383602]
[1664652328926,0.07571436,19313.0,19312.0,0.383602]
[1664652329555,0.07571436,19313.0,19312.0,0.741904]
[1664652329785,0.07571436,19313.0,19312.0,0.383602]
[1664652330232,0.00771436,19313.0,19312.0,0.741904]
[1664652330444,0.00771436,19313.0,19312.0,0.383602]
[1664652330905,0.05,19313.0,19312.0,0.741904]
[1664652331152,0.0538568,19313.0,19312.0,0.741904]
[1664652331385,0.0538568,19313.0,19312.0,0.383602]
[1664652331615,0.0538568,19313.0,19312.0,0.741904]
[1664652332087,0.0538568,19313.0,19312.0,0.383602]
[1664652332311,0.0038568,19313.0,19312.0,0.741904]
[1664652332528,0.0038568,19313.0,19312.0,0.383602]
[1664652332749,0.0038568,19313.0,19312.0,0.741904]
[1664652332973,0.0098568,19313.0,19312.0,0.808904]
[1664652333421,0.0098568,19313.0,19312.0,1.28571577]
[1664652333872,0.0098568,19313.0,19312.0,0.96693161]
[1664652334169,0.0098568,19313.0,19312.0,1.28571577]
[1664652334400,0.0038568,19313.0,19312.0,1.21871577]
[1664652334615,0.0038568,19313.0,19312.0,0.86041377]
[1664652334834,0.0038568,19313.0,19312.0,1.21871577]
[1664652335056,0.0098568,19313.0,19312.0,1.28571577]
[1664652335270,0.0098568,19313.0,19312.0,0.96693161]
[1664652335478,0.0098568,19313.0,19312.0,0.808904]
[1664652335756,0.0098568,19313.0,19312.0,0.76938616]
[1664652335984,0.0098568,19313.0,19312.0,1.12768816]
[1664652336210,0.0098568,19313.0,19312.0,1.17768816]
[1664652336423,0.0038568,19313.0,19312.0,1.11068816]
[1664652336656,0.0038568,19313.0,19312.0,2.05609321]
[1664652336884,0.61912246,19318.0,19313.0,0.408302]
[1664652336885,0.04060823,19318.0,19313.0,0.408302]
[1664652337116,0.23079297,19319.0,19318.0,0.05]
[1664652337340,0.10138297,19319.0,19318.0,0.05]
[1664652337563,0.10138297,19320.0,19316.0,0.44811616]
[1664652337784,0.61311441,19320.0,19316.0,0.44811616]
[1664652338523,0.61311441,19320.0,19316.0,0.50292778]
[1664652338790,0.61311441,19320.0,19317.0,0.3885]
[1664652338791,0.55233967,19320.0,19317.0,0.3885]
[1664652339226,0.57133967,19320.0,19317.0,0.38838066]
[1664652339445,0.63211441,19320.0,19317.0,0.38838066]
[1664652339901,0.76151541,19320.0,19317.0,0.51771166]
[1664652340126,0.70074067,19320.0,19317.0,0.51771166]
[1664652340344,0.68174067,19320.0,19317.0,0.51771166]
[1664652341024,0.74251541,19320.0,19317.0,0.51771166]
[1664652341242,0.74851541,19320.0,19317.0,0.58471166]
[1664652341473,0.68774067,19320.0,19317.0,0.58471166]
[1664652342386,0.68174067,19320.0,19317.0,0.51771166]
[1664652343034,0.68774067,19320.0,19317.0,0.58471166]
[1664652343261,0.64713244,19320.0,19317.0,0.58471166]
[1664652343510,0.94653967,19320.0,19317.0,0.58471166]
[1664652344370,0.94053967,19320.0,19317.0,0.51771166]
[1664652345058,1.00853967,19320.0,19317.0,0.51771166]
[1664652345298,0.96793144,19320.0,19317.0,0.51771166]
[1664652345506,1.00853967,19320.0,19317.0,0.51771166]
[1664652346389,0.94053967,19320.0,19317.0,0.51771166]
[1664652347034,1.00853967,19320.0,19317.0,0.51771166]
[1664652347405,0.96793144,19320.0,19317.0,0.51771166]
[1664652348349,0.89993144,19320.0,19317.0,0.51771166]
[1664652349244,0.96793144,19320.0,19317.0,0.51771166]
[1664652350398,0.89993144,19320.0,19317.0,0.51771166]
[1664652351121,0.96793144,19320.0,19317.0,0.51771166]
[1664652352430,0.89993144,19320.0,19317.0,0.51771166]
[1664652353105,0.96793144,19320.0,19317.0,0.51771166]
[1664652353669,0.96793144,19320.0,19317.0,0.83649582]
[1664652353858,0.96793144,19320.0,19317.0,0.62210434]
[1664652354300,0.89993144,19320.0,19317.0,0.62210434]
[1664652354801,0.89993144,19320.0,19317.0,0.51771166]
[1664652355195,0.97093144,19320.0,19317.0,0.51771166]
[1664652356436,0.89993144,19320.0,19317.0,0.51771166]
[1664652357350,0.97093144,19320.0,19317.0,0.51771166]
[1664652358834,0.89993144,19320.0,19317.0,0.51771166]
[1664652359286,0.97093144,19320.0,19317.0,0.51771166]
[1664652360424,0.89993144,19320.0,19317.0,0.51771166]
[1664652361155,0.97093144,19320.0,19317.0,0.51771166]
[1664652362361,0.89993144,19320.0,19317.0,0.51771166]
[1664652363228,0.97093144,19320.0,19317.0,0.51771166]
[1664652363684,1.48852944,19320.0,19317.0,0.51771166]
[1664652364531,0.3,19319.0,19317.0,0.51771166]
[1664652364761,0.688228,19319.0,19317.0,0.51771166]
[1664652365217,0.759228,19319.0,19317.0,0.51771166]
[1664652365917,0.759228,19319.0,19317.0,0.38838066]
[1664652366363,0.759228,19319.0,19317.0,0.38828148]
[1664652366364,0.688228,19319.0,19317.0,0.38828148]
[1664652367029,0.688228,19319.0,19318.0,0.358302]
[1664652367279,0.759228,19319.0,19317.0,0.38828148]
[1664652367961,0.09616035,19318.0,19317.0,0.38828148]
[1664652368633,1.88996941,19319.0,19317.0,0.38828148]
[1664652368910,0.09616035,19318.0,19317.0,0.25878148]
[1664652369137,0.04060823,19318.0,19317.0,0.25878148]
[1664652369336,1.96096941,19319.0,19317.0,0.25878148]
[1664652369588,0.04060823,19318.0,19317.0,0.25878148]
[1664652370313,1.75819467,19319.0,19317.0,0.25878148]
[1664652370534,0.09616035,19318.0,19317.0,0.25878148]
[1664652370752,0.91311441,19319.0,19317.0,0.25878148]
[1664652370978,1.81896941,19319.0,19317.0,0.25878148]
[1664652371412,0.04060823,19318.0,19317.0,0.25878148]
[1664652372653,0.55233967,19318.0,19317.0,0.25878148]
[1664652372863,0.91311441,19318.0,19317.0,0.25878148]
[1664652373086,1.27889857,19318.0,19317.0,0.25878148]
[1664652373310,0.96011441,19318.0,19317.0,0.25878148]
[1664652374431,0.91311441,19318.0,19317.0,0.25878148]
[1664652375178,0.96011441,19318.0,19317.0,0.25878148]
[1664652376276,1.00068095,19318.0,19317.0,0.25878148]
[1664652376564,1.27246511,19318.0,19317.0,0.25878148]
[1664652377250,1.31946511,19318.0,19317.0,0.25878148]
[1664652377473,1.00068095,19318.0,19317.0,0.25878148]
[1664652378489,0.95368095,19318.0,19317.0,0.25878148]
[1664652379050,1.26155547,19318.0,19317.0,0.25878148]
[1664652379271,1.30855547,19318.0,19317.0,0.25878148]
[1664652379687,0.93990621,19318.0,19317.0,0.25878148]
[1664652380463,0.89290621,19318.0,19317.0,0.25878148]
[1664652380679,1.26156089,19318.0,19317.0,0.25878148]
[1664652381280,1.30856089,19318.0,19317.0,0.25878148]
[1664652381952,0.63990621,19318.0,19317.0,0.25878148]
[1664652382170,0.66019654,19318.0,19317.0,0.25878148]
[1664652382391,0.65378527,19318.0,19317.0,0.25878148]
[1664652383130,0.72278527,19318.0,19317.0,0.25878148]
[1664652383340,1.02278527,19318.0,19317.0,0.25878148]
[1664652384481,0.8726105,19318.0,19317.0,0.25878148]
[1664652384711,0.95378527,19318.0,19317.0,0.25878148]
[1664652384947,1.26197796,19318.0,19317.0,0.25878148]
[1664652385171,1.33097796,19318.0,19317.0,0.25878148]
[1664652385398,1.33098255,19318.0,19317.0,0.25878148]
[1664652386121,1.3309817,19318.0,19317.0,0.25878148]
[1664652386510,1.2619817,19318.0,19317.0,0.25878148]
[1664652386729,0.89290621,19318.0,19317.0,0.25878148]
[1664652386981,0.95378364,19318.0,19317.0,0.25878148]
[1664652387215,0.96278364,19318.0,19317.0,0.32878148]
[1664652388394,0.90190621,19318.0,19317.0,0.32878148]
[1664652388605,0.99437467,19318.0,19317.0,0.25878148]
[1664652388837,0.89290621,19318.0,19317.0,0.25878148]
[1664652389174,0.96278273,19318.0,19317.0,0.32878148]
[1664652389955,0.96278273,19318.0,19317.0,0.32868253]
[1664652390716,0.96278273,19318.0,19317.0,0.25868253]
[1664652390717,0.95378273,19318.0,19317.0,0.25868253]
[1664652391353,1.03278273,19318.0,19317.0,0.25868253]
[1664652391822,0.99219017,19318.0,19317.0,0.25868253]
[1664652392484,0.91319017,19318.0,19317.0,0.25868253]
[1664652393272,0.93319017,19318.0,19317.0,0.33468253]
[1664652393707,0.06058221,19318.0,19317.0,0.65346669]
[1664652393923,0.02,19318.0,19317.0,0.33468253]
[1664652394662,1.74005486,19319.0,19317.0,0.25868253]
[1664652394892,2.2517863,19319.0,19317.0,0.25868253]
[1664652395350,2.05268617,19319.0,19317.0,0.33468253]
[1664652395622,1.99180965,19319.0,19317.0,0.4053801]
[1664652396530,1.95122744,19319.0,19317.0,0.94585173]
[1664652396785,1.45818465,19319.0,19317.0,0.86985173]
[1664652397152,1.41760244,19319.0,19317.0,0.86985173]
[1664652397380,1.48660244,19319.0,19317.0,0.86985173]
[1664652398206,1.52718465,19319.0,19317.0,0.55106757]
[1664652398440,1.48660244,19319.0,19317.0,0.86985173]
[1664652398660,1.41760244,19319.0,19317.0,0.55106757]
[1664652398877,1.41760244,19319.0,19317.0,0.99918273]
[1664652399106,1.41760244,19319.0,19317.0,0.68039857]
[1664652399347,1.43360244,19319.0,19317.0,1.07518273]
[1664652399782,1.43360244,19319.0,19317.0,0.685701]
[1664652399963,1.47418465,19319.0,19317.0,0.685701]
[1664652400533,1.47418465,19319.0,19317.0,0.48037]
[1664652400534,1.45818465,19319.0,19317.0,0.48037]
[1664652401088,1.41760244,19319.0,19317.0,0.48037]
[1664652401314,1.47418465,19319.0,19317.0,0.55637]
[1664652402697,1.45818465,19319.0,19317.0,0.48037]
[1664652403313,1.47318465,19319.0,19317.0,0.55437]
[1664652404571,1.45818465,19319.0,19317.0,0.48037]
[1664652405369,1.47418465,19319.0,19317.0,0.55537]
[1664652406626,1.45818465,19319.0,19317.0,0.48037]
[1664652407284,1.47418465,19319.0,19317.0,0.55537]
[1664652408668,1.45818465,19319.0,19317.0,0.48037]
[1664652409386,1.47418465,19319.0,19317.0,0.55537]
[1664652409561,1.53506117,19319.0,19317.0,0.55537]